bitfinex/quotes_BTCUSD_20241215
["timestamp","ask_amount","ask_price","bid_price","bid_amount"]
[1734271213602,0.91420994,102740.0,102730.0,0.00022716]
[1734271215359,1.00159754,102740.0,102730.0,0.00022716]
[1734271215568,0.47080994,102740.0,102730.0,0.00022716]
[1734271215782,0.55819754,102740.0,102730.0,0.00022716]
[1734271216004,0.55820456,102740.0,102730.0,0.00022716]
[1734271216468,0.6392965,102740.0,102730.0,0.00022716]
[1734271216697,0.50820456,102740.0,102730.0,0.00022716]
[1734271218362,0.50811465,102740.0,102730.0,0.00022716]
[1734271218944,0.50811465,102740.0,102730.0,0.01022716]
[1734271219956,0.63920659,102740.0,102730.0,0.01022716]
[1734271220171,0.63913548,102740.0,102730.0,0.01022716]
[1734271221650,0.63913548,102740.0,102730.0,0.00996702]
[1734271222902,0.81386784,102740.0,102730.0,0.00996702]
[1734271223721,0.81386784,102740.0,102730.0,0.01013942]
[1734271224554,0.94491711,102740.0,102730.0,0.01013942]
[1734271225614,1.0322595,102740.0,102730.0,0.01013942]
[1734271226274,0.99491711,102740.0,102730.0,0.01013942]
[1734271226491,1.08224829,102740.0,102730.0,0.01013942]
[1734271226929,0.99491711,102740.0,102730.0,0.01013942]
[1734271227143,1.09397114,102740.0,102730.0,0.01013942]
[1734271228004,0.99491711,102740.0,102730.0,0.01013942]
[1734271228420,1.08223712,102740.0,102730.0,0.01013942]
[1734271228843,0.86360531,102740.0,102730.0,0.01013942]
[1734271229050,1.08187491,102740.0,102730.0,0.01013942]
[1734271229500,0.88324509,102740.0,102730.0,0.01013942]
[1734271229976,0.73590531,102740.0,102730.0,0.01013942]
[1734271230189,0.61128963,102740.0,102730.0,0.01013942]
[1734271230622,0.56198963,102740.0,102730.0,0.01013942]
[1734271230825,0.29372003,102740.0,102730.0,0.01013942]
[1734271231433,0.34372003,102740.0,102730.0,0.01013942]
[1734271236022,0.34380623,102740.0,102730.0,0.01013942]
[1734271241059,0.37090623,102740.0,102730.0,0.01013942]
[1734271242540,0.34380623,102740.0,102730.0,0.01013942]
[1734271243163,0.09914023,102740.0,102730.0,0.01013942]
[1734271243383,0.09914023,102740.0,102730.0,0.32972442]
[1734271243594,0.54254023,102740.0,102730.0,0.32972442]
[1734271243818,0.54254023,102740.0,102730.0,0.47972442]
[1734271244032,0.56299431,102740.0,102730.0,0.47972442]
[1734271244693,0.46394028,102740.0,102730.0,0.47972442]
[1734271248547,0.02054028,102740.0,102730.0,0.69799584]
[1734271248789,8.62e-05,102740.0,102730.0,1.01960154]
[1734271249034,8.62e-05,102740.0,102730.0,1.19421868]
[1734271250591,8.62e-05,102740.0,102730.0,1.01960154]
[1734271251133,8.62e-05,102740.0,102730.0,1.24721868]
[1734271251872,8.62e-05,102740.0,102730.0,1.0916235]
[1734271251898,8.62e-05,102740.0,102730.0,1.26624064]
[1734271252363,8.62e-05,102740.0,102730.0,1.48451206]
[1734271252605,8.62e-05,102740.0,102730.0,1.26624064]
[1734271254597,8.62e-05,102740.0,102730.0,1.0916235]
[1734271255113,8.62e-05,102740.0,102730.0,1.09061926]
[1734271255358,8.62e-05,102740.0,102730.0,1.2646905]
[1734271255651,8.62e-05,102740.0,102730.0,1.09061926]
[1734271257640,8.62e-05,102740.0,102730.0,0.76933543]
[1734271258672,8.62e-05,102740.0,102730.0,0.638782]
[1734271263265,8.62e-05,102740.0,102730.0,1.14028756]
[1734271263480,8.62e-05,102740.0,102730.0,1.3143588]
[1734271263693,8.62e-05,102740.0,102730.0,1.44491223]
[1734271263905,8.62e-05,102740.0,102730.0,1.56549288]
[1734271264113,8.62e-05,102740.0,102730.0,1.58926256]
[1734271264295,8.62e-05,102740.0,102730.0,1.45870913]
[1734271264549,8.62e-05,102740.0,102730.0,1.58904641]
[1734271264959,8.62e-05,102740.0,102730.0,1.56527673]
[1734271265168,8.62e-05,102740.0,102730.0,1.54375011]
[1734271266615,8.62e-05,102740.0,102730.0,1.54262836]
[1734271268366,8.62e-05,102740.0,102730.0,1.6294748]
[1734271269269,8.62e-05,102740.0,102730.0,3.77432728]
[1734271269464,8.62e-05,102740.0,102730.0,3.90768627]
[1734271269667,8.62e-05,102740.0,102730.0,3.82084652]
[1734271269874,8.62e-05,102740.0,102730.0,3.64183152]
[1734271270955,8.62e-05,102740.0,102730.0,3.65087151]
[1734271271360,8.62e-05,102740.0,102730.0,3.62810765]
[1734271271728,8.62e-05,102740.0,102730.0,3.497856]
[1734271272316,8.62e-05,102740.0,102730.0,1.42961842]
[1734271272489,8.62e-05,102740.0,102730.0,1.26135462]
[1734271272689,8.62e-05,102740.0,102730.0,0.25384638]
[1734271273807,8.62e-05,102740.0,102730.0,0.40384638]
[1734271277932,8.62e-05,102740.0,102730.0,0.47884638]
[1734271280470,8.62e-05,102740.0,102730.0,0.56588141]
[1734271280686,8.62e-05,102740.0,102730.0,0.58888141]
[1734271280917,8.62e-05,102740.0,102730.0,0.62143395]
[1734271281119,8.62e-05,102740.0,102730.0,0.38482442]
[1734271281120,0.02054028,102740.0,102730.0,0.38482442]
[1734271281329,0.07044028,102740.0,102730.0,0.38482442]
[1734271282619,8.62e-05,102740.0,102730.0,0.40782442]
[1734271283491,8.62e-05,102740.0,102730.0,0.49485945]
[1734271284531,8.62e-05,102740.0,102730.0,0.94682684]
[1734271284737,8.62e-05,102740.0,102730.0,1.1208969]
[1734271288516,8.62e-05,102740.0,102730.0,1.12111981]
[1734271288716,8.62e-05,102740.0,102730.0,1.32667236]
[1734271290531,8.62e-05,102740.0,102730.0,1.19611982]
[1734271290740,8.62e-05,102740.0,102730.0,1.32685105]
[1734271290931,8.62e-05,102740.0,102730.0,1.19611982]
[1734271291130,8.62e-05,102740.0,102730.0,1.32685189]
[1734271291333,8.62e-05,102740.0,102730.0,1.19611982]
[1734271292108,8.62e-05,102740.0,102730.0,1.32686189]
[1734271292245,8.62e-05,102740.0,102730.0,1.19611982]
[1734271292653,8.62e-05,102740.0,102730.0,1.12111982]
[1734271292833,8.62e-05,102740.0,102730.0,1.12175519]
[1734271297214,0.24579431,102740.0,102730.0,1.07951151]
[1734271297432,0.24579431,102740.0,102730.0,0.77462696]
[1734271297634,0.24579431,102740.0,102730.0,0.32201019]
[1734271298022,0.22534023,102740.0,102730.0,0.32201019]
[1734271298252,0.86340623,102740.0,102730.0,0.04013942]
[1734271298439,0.86340623,102740.0,102730.0,0.01013942]
[1734271300297,0.66874023,102740.0,102730.0,0.20482442]
[1734271300718,0.68919431,102740.0,102730.0,0.20482442]
[1734271301153,0.66874023,102740.0,102730.0,0.20482442]
[1734271302791,0.67824423,102740.0,102730.0,0.20482442]
[1734271303693,0.69869831,102740.0,102730.0,0.20482442]
[1734271304336,0.67824423,102740.0,102730.0,0.20482442]
[1734271305402,0.87291023,102740.0,102730.0,0.01013942]
[1734271316131,0.67824423,102740.0,102730.0,0.20482442]
[1734271316337,0.87291023,102740.0,102730.0,0.01013942]
[1734271332697,0.42951023,102740.0,102730.0,0.01013942]
[1734271336680,0.23484423,102740.0,102730.0,0.01013942]
[1734271336887,0.34881023,102740.0,102730.0,0.01013942]
[1734271337714,0.15414423,102740.0,102730.0,0.20482442]
[1734271338550,0.34881023,102740.0,102730.0,0.01013942]
[1734271338749,0.42821023,102740.0,102730.0,0.01013942]
[1734271341502,0.51551539,102740.0,102730.0,0.01013942]
[1734271342630,0.64647313,102740.0,102730.0,0.01013942]
[1734271343464,0.64699543,102740.0,102730.0,0.01013942]
[1734271343689,0.82207705,102740.0,102730.0,0.01013942]
[1734271344745,0.95334817,102740.0,102730.0,0.01013942]
[1734271345482,0.92207705,102740.0,102730.0,0.01013942]
[1734271345692,0.94878965,102740.0,102730.0,0.01013942]
[1734271345892,0.81746507,102740.0,102730.0,0.01013942]
[1734271346542,0.74075247,102740.0,102730.0,0.01013942]
[1734271347777,0.294685,102730.0,102720.0,0.0001724]
[1734271348000,1.14682235,102730.0,102720.0,0.0003325]
[1734271348212,0.95168166,102730.0,102720.0,0.0003325]
[1734271348644,0.86411774,102730.0,102720.0,0.0003325]
[1734271350661,0.9952365,102730.0,102720.0,0.0003325]
[1734271351062,1.09429053,102730.0,102720.0,0.0003325]
[1734271351828,1.09384364,102730.0,102720.0,0.0003325]
[1734271352031,0.99478961,102730.0,102720.0,0.0003325]
[1734271352298,1.01461434,102730.0,102720.0,0.0003325]
[1734271352749,1.10198739,102730.0,102720.0,0.0003325]
[1734271354790,0.88350798,102730.0,102720.0,0.0003325]
[1734271354991,0.88331466,102730.0,102720.0,0.0003325]
[1734271355257,1.10167628,102730.0,102720.0,0.0003325]
[1734271355469,0.88331466,102730.0,102720.0,0.0003325]
[1734271356635,0.98236869,102730.0,102720.0,0.0003325]
[1734271357650,0.88331466,102730.0,102720.0,0.0003325]
[1734271360356,0.62128073,102730.0,102720.0,0.0003325]
[1734271360559,0.70859648,102730.0,102720.0,0.0003325]
[1734271360759,0.71155222,102730.0,102720.0,0.0003325]
[1734271363081,0.71155222,102730.0,102720.0,0.00468667]
[1734271363082,0.51502749,102730.0,102720.0,0.00468667]
[1734271363286,0.10209597,102730.0,102720.0,0.00468667]
[1734271363461,0.10209597,102730.0,102720.0,0.28169067]
[1734271363789,0.12028102,102730.0,102720.0,0.28169067]
[1734271365794,0.12028102,102730.0,102720.0,0.28377048]
[1734271368579,0.12028241,102730.0,102720.0,0.28377048]
[1734271369016,0.56368241,102730.0,102720.0,0.28377048]
[1734271369263,0.54549597,102730.0,102720.0,0.28377048]
[1734271370824,0.54549597,102730.0,102720.0,0.00676648]
[1734271371031,0.78548097,102730.0,102720.0,0.00676648]
[1734271371507,0.78548097,102730.0,102720.0,0.00466505]
[1734271371926,0.34208097,102730.0,102720.0,0.00466505]
[1734271373648,0.34203246,102730.0,102720.0,0.00466505]
[1734271375609,0.33907672,102730.0,102720.0,0.00466505]
[1734271376733,0.43907672,102730.0,102720.0,0.00466505]
[1734271376956,0.60565833,102730.0,102720.0,0.00466505]
[1734271378312,0.60569785,102730.0,102720.0,0.00466505]
[1734271379888,0.55569785,102730.0,102720.0,0.00466505]
[1734271381196,0.55570464,102730.0,102720.0,0.00466505]
[1734271381600,0.47640464,102730.0,102720.0,0.00466505]
[1734271381844,0.29377672,102730.0,102720.0,0.00466505]
[1734271382027,0.09909172,102730.0,102720.0,0.00466505]
[1734271382228,0.09909172,102730.0,102720.0,0.28256905]
[1734271383393,0.09909172,102730.0,102720.0,0.28465574]
[1734271386415,0.5629458,102730.0,102720.0,0.28465574]
[1734271389987,0.1195458,102730.0,102720.0,0.28465574]
[1734271395428,0.11924539,102730.0,102720.0,0.28465574]
[1734271396914,0.02054028,102730.0,102720.0,0.48435574]
[1734271397992,8.62e-05,102730.0,102720.0,0.48435574]
[1734271398400,8.62e-05,102730.0,102720.0,0.50735574]
[1734271400260,0.29382523,102730.0,102720.0,0.00675174]
[1734271400468,0.43318487,102730.0,102720.0,0.00675174]
[1734271400675,0.42352523,102730.0,102720.0,0.00464343]
[1734271402766,0.05,102710.0,102700.0,0.0001322]
[1734271402973,0.194741,102700.0,102690.0,0.0001722]
[1734271403128,0.29379503,102700.0,102690.0,0.0001722]
[1734271403288,0.29379503,102700.0,102690.0,0.00072049]
[1734271404393,0.29379503,102700.0,102690.0,0.71440524]
[1734271405425,0.42799193,102700.0,102690.0,0.54019482]
[1734271405637,0.05,102680.0,102670.0,0.17421042]
[1734271405850,0.34385203,102680.0,102670.0,0.32165312]
[1734271406097,0.53864603,102680.0,102660.0,0.39214585]
[1734271406281,0.29385203,102670.0,102660.0,0.71382181]
[1734271406485,0.29385203,102670.0,102660.0,0.32184836]
[1734271406725,0.29385203,102670.0,102660.0,0.32166932]
[1734271407570,0.29385203,102670.0,102660.0,0.0001724]
[1734271408195,0.09905403,102670.0,102660.0,0.0001724]
[1734271408969,0.09905403,102670.0,102660.0,0.1949894]
[1734271409540,0.39175203,102670.0,102660.0,0.0001724]
[1734271410141,0.41775203,102670.0,102660.0,0.0001724]
[1734271410326,0.46775203,102670.0,102660.0,0.0001724]
[1734271411286,0.41775203,102670.0,102660.0,0.0001724]
[1734271411465,0.09905403,102670.0,102660.0,0.0001724]
[1734271412139,0.09905403,102670.0,102660.0,0.1949894]
[1734271413357,0.38071464,102670.0,102660.0,0.0001724]
[1734271413559,0.42861464,102670.0,102660.0,0.0001724]
[1734271413760,0.41775203,102670.0,102660.0,0.0001724]
[1734271414833,0.46775203,102670.0,102660.0,0.0001724]
[1734271415530,0.22295403,102670.0,102660.0,0.0001724]
[1734271415747,0.09905403,102670.0,102660.0,0.0001724]
[1734271416175,0.09905403,102670.0,102660.0,0.1949894]
[1734271416402,0.09905403,102670.0,102660.0,0.3449894]
[1734271416609,0.09905403,102670.0,102660.0,0.86618927]
[1734271416810,0.00957204,102680.0,102660.0,1.18646199]
[1734271417019,0.04917168,102690.0,102670.0,0.08675763]
[1734271417218,0.00297168,102690.0,102670.0,0.47633963]
[1734271417434,0.1330468,102700.0,102670.0,0.43154363]
[1734271417662,0.02045408,102680.0,102670.0,0.88204444]
[1734271417880,0.02045408,102680.0,102670.0,1.05577755]
[1734271418082,0.02045408,102680.0,102670.0,1.18618653]
[1734271418282,0.46385408,102680.0,102670.0,1.18618653]
[1734271418549,0.02045408,102680.0,102670.0,1.18618653]
[1734271418981,0.02045408,102680.0,102670.0,1.05588656]
[1734271419334,0.45364412,102700.0,102690.0,0.19476]
[1734271419917,0.45364412,102700.0,102690.0,0.28147511]
[1734271420143,0.45364412,102700.0,102690.0,0.19476]
[1734271420361,0.67750615,102700.0,102660.0,0.1949774]
[1734271420578,0.78721403,102690.0,102660.0,0.78012031]
[1734271420786,0.78721403,102690.0,102660.0,0.28172275]
[1734271420787,0.98198503,102690.0,102660.0,0.28172275]
[1734271420988,0.98198503,102690.0,102660.0,0.47653975]
[1734271422331,0.98198503,102690.0,102660.0,0.67134575]
[1734271423809,0.98198503,102690.0,102660.0,0.47652875]
[1734271424568,0.78721403,102690.0,102660.0,0.47652875]
[1734271424794,0.78721403,102690.0,102670.0,0.194797]
[1734271424795,0.59245403,102690.0,102670.0,0.194797]
[1734271425711,0.09905403,102690.0,102670.0,0.194797]
[1734271425916,0.4434,102680.0,102670.0,0.344797]
[1734271426118,0.54245403,102680.0,102670.0,0.62631325]
[1734271426341,0.11950811,102680.0,102670.0,0.62631325]
[1734271426569,0.4434,102690.0,102680.0,0.344779]
[1734271426789,0.54245403,102690.0,102680.0,0.43151025]
[1734271426987,0.01024412,102700.0,102690.0,0.19476]
[1734271427197,0.10929815,102700.0,102690.0,0.19476]
[1734271430518,0.10929815,102700.0,102690.0,0.1949324]
[1734271430686,0.10938435,102700.0,102690.0,0.1949324]
[1734271432905,0.23998435,102700.0,102690.0,0.0001724]
[1734271433113,0.43472535,102700.0,102690.0,0.0001724]
[1734271433296,0.43122535,102700.0,102690.0,0.0001724]
[1734271434770,0.48122535,102700.0,102690.0,0.0001724]
[1734271437538,0.43122535,102700.0,102690.0,0.0001724]
[1734271437985,0.48122535,102700.0,102690.0,0.0001724]
[1734271438508,0.10938435,102700.0,102690.0,0.0001724]
[1734271438912,0.10938435,102700.0,102690.0,0.1949324]
[1734271440769,0.1272,102720.0,102700.0,0.38946]
[1734271440946,0.09905403,102710.0,102700.0,0.19478077]
[1734271443104,0.00936149,102720.0,102700.0,0.19478077]
[1734271443306,0.09905403,102720.0,102710.0,0.194723]
[1734271449197,0.09905403,102720.0,102700.0,0.41185857]
[1734271449400,0.29375803,102720.0,102700.0,0.47633889]
[1734271449610,0.09905403,102710.0,102700.0,0.08688589]
[1734271449831,0.34377703,102710.0,102700.0,5.477e-05]
[1734271450035,0.34367737,102710.0,102700.0,5.477e-05]
[1734271453793,0.42517737,102710.0,102700.0,5.477e-05]
[1734271454005,0.42517737,102710.0,102700.0,0.00022717]
[1734271454244,0.42526357,102710.0,102700.0,0.00022717]
[1734271458179,0.43493287,102710.0,102700.0,0.00022717]
[1734271463036,0.43786352,102710.0,102700.0,0.00022717]
[1734271468404,0.4379774,102710.0,102700.0,0.00022717]
[1734271473082,0.43504675,102710.0,102700.0,0.00022717]
[1734271476928,0.58504675,102710.0,102700.0,0.00022717]
[1734271477139,0.244741,102700.0,102690.0,0.0001724]
[1734271477341,0.34379503,102700.0,102690.0,0.0007192]
[1734271480503,0.36299592,102700.0,102690.0,0.0007192]
[1734271489481,0.44219592,102700.0,102690.0,0.0007192]
[1734271489699,0.39219592,102700.0,102690.0,0.0007192]
[1734271489904,0.194779,102680.0,102660.0,0.73755027]
[1734271490108,0.29385203,102670.0,102660.0,0.61791426]
[1734271490358,0.34385203,102670.0,102660.0,0.16538352]
[1734271490684,0.34385203,102670.0,102660.0,0.19538352]
[1734271491093,0.34385203,102670.0,102660.0,0.1081724]
[1734271491290,0.34385203,102670.0,102660.0,0.0781724]
[1734271497667,0.46845203,102670.0,102660.0,0.0001724]
[1734271498292,0.41845203,102670.0,102660.0,0.0001724]
[1734271499059,0.4303909,102670.0,102660.0,0.0001724]
[1734271500105,0.4803909,102670.0,102660.0,0.0001724]
[1734271500320,0.3557909,102670.0,102660.0,0.0001724]
[1734271502849,0.3057909,102670.0,102660.0,0.0001724]
[1734271503487,0.1109929,102670.0,102660.0,0.1949894]
[1734271505692,0.1109929,102670.0,102660.0,0.3220894]
[1734271506337,0.1109929,102670.0,102660.0,0.40921804]
[1734271508733,0.1109929,102670.0,102660.0,0.539911]
[1734271508933,0.1109929,102670.0,102660.0,0.8613032]
[1734271510471,0.1109929,102670.0,102660.0,1.03556048]
[1734271510853,0.0005465,102680.0,102660.0,1.03556048]
[1734271511128,0.02100058,102680.0,102670.0,0.28192664]
[1734271511342,0.0005465,102680.0,102670.0,0.90826908]
[1734271511767,0.0005465,102680.0,102670.0,0.98926908]
[1734271514477,0.0005465,102680.0,102670.0,1.20709068]
[1734271515012,0.0005465,102680.0,102670.0,0.98926908]
[1734271515211,0.0005465,102680.0,102670.0,1.20709068]
[1734271515650,0.0005465,102680.0,102670.0,1.35709068]
[1734271515855,0.0005465,102680.0,102670.0,1.20876908]
[1734271516082,0.0005465,102680.0,102670.0,1.0345118]
[1734271516270,0.02054028,102690.0,102680.0,0.0811]
[1734271516487,0.02059491,102690.0,102680.0,0.88549139]
[1734271516673,0.02059491,102690.0,102680.0,1.20688359]
[1734271516849,0.02059491,102690.0,102680.0,1.20689049]
[1734271517031,0.02059491,102690.0,102680.0,1.11981897]
[1734271517254,0.02059491,102690.0,102680.0,1.20688713]
[1734271517432,0.02059491,102690.0,102680.0,0.98922204]
[1734271517723,0.00014083,102690.0,102680.0,1.01222204]
[1734271517899,0.00014083,102690.0,102680.0,1.05872204]
[1734271520763,0.02059491,102690.0,102680.0,1.03572204]
[1734271520982,0.02059491,102690.0,102680.0,0.98899742]
[1734271521187,0.02059491,102690.0,102680.0,0.81486818]
[1734271522012,0.00014083,102690.0,102680.0,0.81486818]
[1734271524103,0.09919486,102690.0,102680.0,0.53898918]
[1734271524311,0.29395486,102690.0,102680.0,0.08704268]
[1734271524525,0.02045408,102680.0,102670.0,1.29971782]
[1734271524724,0.02045408,102680.0,102670.0,1.62121059]
[1734271525372,0.02045408,102680.0,102670.0,1.65121059]
[1734271525586,0.48871786,102690.0,102670.0,1.58171059]
[1734271526851,0.48871786,102690.0,102670.0,1.58188299]
[1734271527873,0.50008755,102690.0,102670.0,1.58188299]
[1734271528928,0.30532555,102690.0,102670.0,1.58188299]
[1734271532118,0.30532555,102690.0,102670.0,0.93267308]
[1734271532421,0.30532555,102690.0,102670.0,1.77660892]
[1734271533272,0.30532555,102690.0,102670.0,1.58182092]
[1734271533645,0.38052555,102690.0,102670.0,1.50072092]
[1734271533847,0.57529555,102690.0,102670.0,1.50072092]
[1734271534109,0.50009555,102690.0,102670.0,1.50072092]
[1734271535453,0.50009555,102690.0,102670.0,1.50096597]
[1734271536103,0.69487055,102690.0,102670.0,1.30617897]
[1734271536311,0.50009555,102690.0,102670.0,1.30617897]
[1734271537132,0.50009555,102690.0,102670.0,1.08842848]
[1734271537471,0.50009555,102690.0,102670.0,1.30617897]
[1734271539072,0.69487055,102690.0,102670.0,1.30617897]
[1734271539269,0.09905403,102680.0,102670.0,0.96139597]
[1734271539472,0.34183303,102680.0,102670.0,0.0301724]
[1734271539704,0.34183303,102680.0,102670.0,0.0001724]
[1734271547834,0.42393303,102680.0,102670.0,0.0001724]
[1734271548882,0.09905403,102680.0,102670.0,0.0001724]
[1734271549301,0.09881126,102680.0,102670.0,0.0001724]
[1734271549513,0.29359026,102680.0,102670.0,0.0001724]
[1734271549923,0.29359026,102680.0,102670.0,0.08734187]
[1734271550140,0.09881126,102680.0,102670.0,0.08734187]
[1734271550349,0.02045408,102680.0,102670.0,0.85972003]
[1734271550554,0.02045408,102680.0,102670.0,1.33157926]
[1734271550765,0.02045408,102680.0,102670.0,1.46233348]
[1734271552215,0.02059491,102690.0,102680.0,0.445479]
[1734271552429,0.00014083,102690.0,102680.0,1.15943522]
[1734271552668,0.00014083,102690.0,102680.0,1.02884665]
[1734271555077,0.00014083,102690.0,102680.0,1.05884665]
[1734271555305,0.00014083,102690.0,102680.0,1.15790068]
[1734271555468,0.00014083,102690.0,102680.0,1.20320068]
[1734271558261,0.00014083,102690.0,102680.0,1.22231084]
[1734271561908,0.00014083,102690.0,102680.0,0.89995764]
[1734271562294,0.00014083,102690.0,102680.0,1.22112777]
[1734271563054,0.02059491,102690.0,102680.0,1.03466358]
[1734271563260,0.02059491,102690.0,102680.0,0.80696358]
[1734271563544,0.00014083,102690.0,102680.0,0.80696358]
[1734271563745,0.19490083,102690.0,102680.0,0.29101445]
[1734271564367,0.00014083,102690.0,102680.0,0.29101445]
[1734271564571,0.00014083,102690.0,102680.0,0.48579345]
[1734271567075,0.27315423,102700.0,102680.0,0.53204344]
[1734271567293,0.56696226,102700.0,102680.0,0.53858008]
[1734271567512,0.56696226,102700.0,102680.0,0.27570718]
[1734271569011,0.56696226,102700.0,102680.0,0.22945719]
[1734271569214,0.56696226,102700.0,102680.0,0.25745101]
[1734271569844,0.37220826,102700.0,102680.0,0.45223001]
[1734271570051,0.37220826,102700.0,102680.0,0.53926328]
[1734271571085,0.37220826,102700.0,102680.0,0.47048659]
[1734271571294,0.37220826,102700.0,102680.0,0.55750608]
[1734271573493,0.37229446,102700.0,102680.0,0.55750608]
[1734271576354,0.37229446,102700.0,102680.0,0.47048659]
[1734271576734,0.56704546,102700.0,102680.0,0.47048659]
[1734271577168,0.5061916,102700.0,102680.0,0.47048659]
[1734271579509,0.3114376,102700.0,102680.0,0.47048659]
[1734271580722,0.5542896,102700.0,102680.0,0.47048659]
[1734271581106,0.02045408,102690.0,102680.0,0.47048659]
[1734271581305,0.14724023,102700.0,102690.0,0.19476]
[1734271581554,0.14724023,102700.0,102690.0,0.2410104]
[1734271581759,0.14724023,102700.0,102690.0,0.24548676]
[1734271581959,0.10342792,102700.0,102690.0,0.24548676]
[1734271586010,0.10342792,102700.0,102690.0,0.5641632]
[1734271586011,8.62e-05,102700.0,102690.0,0.5641632]
[1734271586190,8.62e-05,102700.0,102690.0,0.89193074]
[1734271586380,8.62e-05,102700.0,102690.0,1.21334347]
[1734271586574,8.62e-05,102700.0,102690.0,1.44301216]
[1734271587132,0.2748732,102730.0,102710.0,0.194706]
[1734271587336,0.38525806,102730.0,102710.0,0.3225564]
[1734271587540,0.19057106,102730.0,102720.0,0.00450133]
[1734271587758,0.11047106,102730.0,102720.0,0.24545573]
[1734271587996,8.62e-05,102730.0,102720.0,0.24545573]
[1734271588401,8.62e-05,102730.0,102720.0,0.24544464]
[1734271588658,0.00014099,102730.0,102720.0,0.24544464]
[1734271588882,0.09919502,102730.0,102720.0,0.05074064]
[1734271589108,0.29388002,102730.0,102720.0,0.05074064]
[1734271589308,0.09919502,102730.0,102720.0,0.05074064]
[1734271589505,0.09919502,102730.0,102720.0,0.24544464]
[1734271589928,0.29388002,102730.0,102720.0,0.05074064]
[1734271590385,0.37398002,102730.0,102720.0,0.05074064]
[1734271593799,0.47358002,102730.0,102720.0,0.03248406]
[1734271594824,0.47358002,102730.0,102720.0,0.03248889]
[1734271595308,0.47358002,102730.0,102720.0,0.03626782]
[1734271597172,0.39348002,102730.0,102720.0,0.03248889]
[1734271597991,0.34348002,102730.0,102720.0,0.03248889]
[1734271598222,0.34348002,102730.0,102720.0,0.00450133]
[1734271598481,0.34348002,102730.0,102720.0,0.03248821]
[1734271598966,0.09919502,102730.0,102720.0,0.22719221]
[1734271599202,0.05539356,102730.0,102720.0,0.22719221]
[1734271600847,0.01130572,102740.0,102720.0,0.42187221]
[1734271601085,8.62e-05,102740.0,102730.0,0.194685]
[1734271601342,8.62e-05,102740.0,102730.0,0.21293731]
[1734271601589,8.62e-05,102740.0,102730.0,0.2276445]
[1734271601847,8.62e-05,102740.0,102730.0,0.3103445]
[1734271602073,8.62e-05,102740.0,102730.0,0.84930918]
[1734271602311,8.62e-05,102740.0,102730.0,0.39740458]
[1734271604479,8.62e-05,102740.0,102730.0,0.54740458]
[1734271606509,8.62e-05,102740.0,102730.0,0.4603445]
[1734271607119,8.62e-05,102740.0,102730.0,0.47859717]
[1734271607522,8.62e-05,102740.0,102730.0,0.49075652]
[1734271607726,8.62e-05,102740.0,102730.0,0.47858831]
[1734271608577,8.62e-05,102740.0,102730.0,0.50158831]
[1734271609213,0.01141587,102760.0,102740.0,0.15]
[1734271609419,0.01141587,102760.0,102750.0,0.194647]
[1734271609634,0.01141587,102760.0,102750.0,0.22752692]
[1734271610253,0.01141587,102760.0,102750.0,0.22144251]
[1734271610461,0.01141587,102760.0,102750.0,0.22752407]
[1734271611890,8.62e-05,102760.0,102750.0,0.22752407]
[1734271612096,8.62e-05,102760.0,102750.0,0.37752407]
[1734271612887,8.62e-05,102760.0,102750.0,0.39577674]
[1734271613941,8.62e-05,102760.0,102750.0,0.47157674]
[1734271614179,0.00020008,102770.0,102760.0,0.194628]
[1734271614391,0.00020008,102770.0,102760.0,0.31762887]
[1734271614602,0.00020008,102770.0,102760.0,0.32150276]
[1734271615354,0.00036442,102770.0,102760.0,0.32150276]
[1734271616751,0.00036442,102770.0,102760.0,0.47150276]
[1734271616965,0.00036442,102770.0,102760.0,0.45568983]
[1734271617169,0.00036442,102770.0,102760.0,0.47149874]
[1734271617828,0.09008622,102780.0,102760.0,0.46689874]
[1734271618171,0.09008622,102780.0,102770.0,0.25627294]
[1734271618321,0.09008622,102780.0,102770.0,0.30152382]
[1734271618523,0.09008622,102780.0,102770.0,0.50097974]
[1734271618821,0.09008622,102780.0,102770.0,0.5289944]
[1734271619227,0.02928488,102780.0,102770.0,0.47797974]
[1734271619615,0.02928488,102780.0,102770.0,0.45000859]
[1734271619842,0.02928488,102780.0,102770.0,0.04498825]
[1734271620000,0.02928488,102780.0,102770.0,0.24567743]
[1734271621031,0.22387488,102780.0,102770.0,0.05106843]
[1734271621250,0.22387488,102780.0,102770.0,0.03281576]
[1734271621457,0.22387488,102780.0,102770.0,0.05106843]
[1734271622104,0.22387488,102780.0,102770.0,0.03282788]
[1734271622314,0.22387488,102780.0,102770.0,0.05106913]
[1734271622519,0.02928488,102780.0,102770.0,0.05106913]
[1734271622961,0.02928488,102780.0,102770.0,0.24567813]
[1734271623168,0.02928488,102780.0,102770.0,0.39567813]
[1734271624688,0.1946582,102790.0,102770.0,0.59027113]
[1734271624867,0.1946582,102790.0,102770.0,0.78488013]
[1734271625082,0.1946582,102790.0,102770.0,0.78487781]
[1734271625507,8.62e-05,102790.0,102780.0,0.27729]
[1734271625718,8.62e-05,102790.0,102780.0,0.44309751]
[1734271625929,8.62e-05,102790.0,102780.0,0.48303928]
[1734271626131,8.62e-05,102790.0,102780.0,0.60034598]
[1734271626334,8.62e-05,102790.0,102780.0,0.64894598]
[1734271626758,8.62e-05,102800.0,102780.0,1.18432767]
[1734271626968,8.62e-05,102800.0,102790.0,0.35572664]
[1734271627191,8.62e-05,102800.0,102790.0,0.62136224]
[1734271627399,8.62e-05,102800.0,102790.0,0.701953]
[1734271627607,8.62e-05,102800.0,102790.0,0.78842474]
[1734271628264,0.4369592,102840.0,102820.0,0.389028]
[1734271628547,0.4369592,102840.0,102820.0,0.194514]
[1734271628548,0.53601323,102840.0,102820.0,0.194514]
[1734271628762,0.53601323,102840.0,102830.0,0.0046801]
[1734271628969,0.53601323,102840.0,102830.0,0.05089011]
[1734271629202,0.49225538,102840.0,102830.0,0.05089011]
[1734271629406,0.29354303,102840.0,102830.0,0.05089011]
[1734271629611,0.49945491,102840.0,102830.0,0.05089011]
[1734271630870,0.49954101,102840.0,102830.0,0.05089011]
[1734271631505,0.49954101,102840.0,102830.0,0.02293277]
[1734271631730,0.49954101,102840.0,102830.0,0.03873408]
[1734271631937,0.54954101,102840.0,102830.0,0.05088894]
[1734271632147,0.62744101,102840.0,102830.0,0.05088894]
[1734271632373,0.67534101,102840.0,102830.0,0.03263627]
[1734271633180,0.59024702,102840.0,102830.0,0.05087069]
[1734271633407,0.48085201,102840.0,102830.0,0.05087069]
[1734271634024,0.67534101,102840.0,102830.0,0.05087069]
[1734271634237,0.67534101,102840.0,102830.0,0.03263627]
[1734271635089,0.67534101,102840.0,102830.0,0.03263829]
[1734271635298,0.67534101,102840.0,102830.0,0.03263937]
[1734271638213,0.67534101,102840.0,102830.0,0.02656133]
[1734271638424,0.67534101,102840.0,102830.0,0.03263945]
[1734271639279,0.67534101,102840.0,102830.0,0.05087381]
[1734271639500,0.61455995,102840.0,102830.0,0.05087381]
[1734271640311,0.6285218,102840.0,102830.0,0.05087381]
[1734271641026,0.6285218,102840.0,102830.0,0.02291446]
[1734271641235,0.6285218,102840.0,102830.0,0.0350704]
[1734271641455,0.4527218,102840.0,102830.0,0.05087312]
[1734271643334,0.46356357,102840.0,102830.0,0.05087312]
[1734271643737,0.51356357,102840.0,102830.0,0.05087312]
[1734271644211,0.3544709,102840.0,102830.0,0.05087312]